[Event "Titled Tuesday Blitz November 08 Late 2022"]
[White "He, Samuel"]
[Black "Kaganskiy, Gleb"]
[WhiteFideId "2087235"]
[BlackFideId "4132025"]
[WhiteElo "2623"]
[BlackElo "2165"]
[Result "1/2-1/2"]
[Round "01"]
[TimeControl "180+1"]
[Date "2022.11.09"]
[WhiteClock "0:01:12"]
[BlackClock "0:00:44"]

1. Nf3 {[%clk 0:02:59]}  d5 {[%clk 0:02:51]} 2. g3 {[%clk 0:02:57]}  Nf6 {[%clk 0:02:48]} 3. Bg2 {[%clk 0:02:58]}  e6 {[%clk 0:02:49]} 4. O-O {[%clk 0:02:58]}  Be7 {[%clk 0:02:50]} 5. d3 {[%clk 0:02:58]}  O-O {[%clk 0:02:47]} 6. c4 {[%clk 0:02:58]}  c5 {[%clk 0:02:41]} 7. Bf4 {[%clk 0:02:58]}  d4 {[%clk 0:02:41]} 8. e3 {[%clk 0:02:51]}  Nc6 {[%clk 0:02:39]} 9. exd4 {[%clk 0:02:50]}  cxd4 {[%clk 0:02:39]} 10. Ne5 {[%clk 0:02:49]}  Nxe5 {[%clk 0:02:38]} 11. Bxe5 {[%clk 0:02:49]}  Ne8 {[%clk 0:02:34]} 12. Na3 {[%clk 0:02:13]}  f6 {[%clk 0:02:31]} 13. Bf4 {[%clk 0:02:13]}  e5 {[%clk 0:02:32]} 14. Bd2 {[%clk 0:02:13]}  Bxa3 {[%clk 0:02:26]} 15. bxa3 {[%clk 0:02:13]}  Qc7 {[%clk 0:02:21]} 16. a4 {[%clk 0:01:59]}  Bd7 {[%clk 0:02:15]} 17. Qb3 {[%clk 0:01:45]}  Bc6 {[%clk 0:02:12]} 18. f3 {[%clk 0:01:45]}  Kh8 {[%clk 0:02:10]} 19. a5 {[%clk 0:01:43]}  a6 {[%clk 0:02:02]} 20. Rab1 {[%clk 0:01:41]}  Nd6 {[%clk 0:01:58]} 21. Qb6 {[%clk 0:01:40]}  Qxb6 {[%clk 0:01:55]} 22. axb6 {[%clk 0:01:37]}  Nf5 {[%clk 0:01:33]} 23. Rbe1 {[%clk 0:01:34]}  Rfd8 {[%clk 0:01:28]} 24. Bh3 {[%clk 0:01:33]}  g6 {[%clk 0:01:23]} 25. f4 {[%clk 0:01:25]}  Re8 {[%clk 0:01:19]} 26. fxe5 {[%clk 0:01:18]}  Rxe5 {[%clk 0:00:58]} 27. Rxe5 {[%clk 0:01:17]}  fxe5 {[%clk 0:00:59]} 28. Bxf5 {[%clk 0:01:15]}  gxf5 {[%clk 0:01:00]} 29. Rxf5 {[%clk 0:01:16]}  e4 {[%clk 0:00:56]} 30. dxe4 {[%clk 0:01:13]}  Bxe4 {[%clk 0:00:55]} 31. Re5 {[%clk 0:01:09]}  Bc6 {[%clk 0:00:51]} 32. Bh6 {[%clk 0:01:07]}  Re8 {[%clk 0:00:47]} 33. Bf4 {[%clk 0:00:58]}  Rxe5 {[%clk 0:00:39]} 34. Bxe5+ {[%clk 0:00:58]}  Kg8 {[%clk 0:00:39]} 35. Bxd4 {[%clk 0:00:58]}  Kf7 {[%clk 0:00:39]} 36. Kf2 {[%clk 0:00:59]}  Kg6 {[%clk 0:00:39]} 37. Ke3 {[%clk 0:00:57]}  Bg2 {[%clk 0:00:39]} 38. Kf4 {[%clk 0:00:57]}  h5 {[%clk 0:00:38]} 39. Ke5 {[%clk 0:00:56]}  Bc6 {[%clk 0:00:37]} 40. Kf4 {[%clk 0:00:52]}  Bh1 {[%clk 0:00:37]} 41. h3 {[%clk 0:00:52]}  Bc6 {[%clk 0:00:38]} 42. g4 {[%clk 0:00:53]}  hxg4 {[%clk 0:00:38]} 43. hxg4 {[%clk 0:00:54]}  Bh1 {[%clk 0:00:37]} 44. Be3 {[%clk 0:00:52]}  Bc6 {[%clk 0:00:37]} 45. Ke5 {[%clk 0:00:53]}  Bg2 {[%clk 0:00:37]} 46. Bf4 {[%clk 0:00:50]}  Bc6 {[%clk 0:00:37]} 47. Kd6 {[%clk 0:00:50]}  Bf3 {[%clk 0:00:38]} 48. g5 {[%clk 0:00:49]}  Bc6 {[%clk 0:00:38]} 49. Bd2 {[%clk 0:00:49]}  Bg2 {[%clk 0:00:38]} 50. Ke5 {[%clk 0:00:47]}  Bc6 {[%clk 0:00:39]} 51. Kf4 {[%clk 0:00:47]}  Bh1 {[%clk 0:00:39]} 52. Bc3 {[%clk 0:00:48]}  Bc6 {[%clk 0:00:40]} 53. a3 {[%clk 0:00:48]}  Bh1 {[%clk 0:00:40]} 54. a4 {[%clk 0:00:48]}  Bc6 {[%clk 0:00:41]} 55. a5 {[%clk 0:00:49]}  Bh1 {[%clk 0:00:42]} 56. Bf6 {[%clk 0:00:49]}  Bc6 {[%clk 0:00:43]} 57. Ke3 {[%clk 0:00:50]}  Bh1 {[%clk 0:00:43]} 58. Kd2 {[%clk 0:00:50]}  Bc6 {[%clk 0:00:44]} 59. Kc3 {[%clk 0:00:51]}  Bh1 {[%clk 0:00:45]} 60. Kb4 {[%clk 0:00:51]}  Bc6 {[%clk 0:00:45]} 61. Kc5 {[%clk 0:00:52]}  Bh1 {[%clk 0:00:45]} 62. Kd6 {[%clk 0:00:52]}  Bc6 {[%clk 0:00:45]} 63. Ke7 {[%clk 0:00:52]}  Bh1 {[%clk 0:00:44]} 64. Kd8 {[%clk 0:00:53]}  Bc6 {[%clk 0:00:43]} 65. Kc8 {[%clk 0:00:53]}  Bh1 {[%clk 0:00:43]} 66. Kc7 {[%clk 0:00:53]}  Bc6 {[%clk 0:00:42]} 67. c5 {[%clk 0:00:54]}  Bh1 {[%clk 0:00:42]} 68. Kd6 {[%clk 0:00:54]}  Bc6 {[%clk 0:00:42]} 69. Ke5 {[%clk 0:00:55]}  Bh1 {[%clk 0:00:41]} 70. Kf4 {[%clk 0:00:56]}  Bc6 {[%clk 0:00:41]} 71. Kg3 {[%clk 0:00:57]}  Bd5 {[%clk 0:00:41]} 72. Kh2 {[%clk 0:00:57]}  Bc6 {[%clk 0:00:41]} 73. Kg1 {[%clk 0:00:57]}  Bd5 {[%clk 0:00:41]} 74. Kf1 {[%clk 0:00:58]}  Bc6 {[%clk 0:00:41]} 75. Ke1 {[%clk 0:00:59]}  Bd5 {[%clk 0:00:41]} 76. Kd1 {[%clk 0:00:59]}  Bc6 {[%clk 0:00:42]} 77. Kc1 {[%clk 0:01:00]}  Bd5 {[%clk 0:00:42]} 78. Kb2 {[%clk 0:01:01]}  Bc6 {[%clk 0:00:42]} 79. Kc3 {[%clk 0:01:01]}  Bd5 {[%clk 0:00:43]} 80. Kd3 {[%clk 0:01:02]}  Bc6 {[%clk 0:00:43]} 81. Kd4 {[%clk 0:01:02]}  Bg2 {[%clk 0:00:43]} 82. Ke3 {[%clk 0:01:02]}  Bc6 {[%clk 0:00:43]} 83. Bd8 {[%clk 0:01:03]}  Bd5 {[%clk 0:00:42]} 84. Kf4 {[%clk 0:01:03]}  Bc6 {[%clk 0:00:43]} 85. Bc7 {[%clk 0:01:03]}  Bd5 {[%clk 0:00:43]} 86. Be5 {[%clk 0:01:04]}  Bc6 {[%clk 0:00:44]} 87. Ba1 {[%clk 0:01:04]}  Bd5 {[%clk 0:00:43]} 88. Kg4 {[%clk 0:01:05]}  Bc6 {[%clk 0:00:44]} 89. Kh4 {[%clk 0:01:05]}  Bd5 {[%clk 0:00:45]} 90. Bd4 {[%clk 0:01:05]}  Bc6 {[%clk 0:00:46]} 91. Bg1 {[%clk 0:01:06]}  Bd5 {[%clk 0:00:46]} 92. Kg4 {[%clk 0:01:06]}  Bc6 {[%clk 0:00:46]} 93. Kf4 {[%clk 0:01:07]}  Bd5 {[%clk 0:00:46]} 94. c6 {[%clk 0:01:07]}  Bxc6 {[%clk 0:00:46]} 95. Bc5 {[%clk 0:01:07]}  Bd5 {[%clk 0:00:45]} 96. Bd4 {[%clk 0:01:08]}  Bc6 {[%clk 0:00:46]} 97. Bf6 {[%clk 0:01:08]}  Bd5 {[%clk 0:00:46]} 98. Ke5 {[%clk 0:01:09]}  Bc6 {[%clk 0:00:47]} 99. Kd4 {[%clk 0:01:09]}  Bg2 {[%clk 0:00:46]} 100. Kc5 {[%clk 0:01:10]}  Bc6 {[%clk 0:00:46]} 101. Kd6 {[%clk 0:01:10]}  Bf3 {[%clk 0:00:45]} 102. Ke5 {[%clk 0:01:11]}  Bc6 {[%clk 0:00:45]} 103. Kd4 {[%clk 0:01:11]}  Bg2 {[%clk 0:00:44]} 104. Ke3 {[%clk 0:01:12]}  Bc6 {[%clk 0:00:44]} 105. Kd4 {[%clk 0:01:12]} 1/2-1/2


[Site "https://www.chess.com"]

[Event "Titled Tuesday Blitz November 08 Late 2022"]
[White "Hoffmann, Asa"]
[Black "Zeynalli, Rashad"]
[WhiteFideId "2001470"]
[BlackFideId "13403320"]
[WhiteElo "2117"]
[BlackElo "2125"]
[Result "1-0"]
[Round "01"]
[TimeControl "180+1"]
[Date "2022.11.09"]
[WhiteClock "0:00:58"]
[BlackClock "0:00:07"]

1. d4 {[%clk 0:02:55]}  Nf6 {[%clk 0:02:58]} 2. Bg5 {[%clk 0:02:51]}  d5 {[%clk 0:02:56]} 3. Nd2 {[%clk 0:02:50]}  e6 {[%clk 0:02:54]} 4. e3 {[%clk 0:02:50]}  Be7 {[%clk 0:02:53]} 5. Bd3 {[%clk 0:02:50]}  O-O {[%clk 0:02:52]} 6. f4 {[%clk 0:02:50]}  c5 {[%clk 0:02:42]} 7. c3 {[%clk 0:02:50]}  b6 {[%clk 0:02:39]} 8. Ngf3 {[%clk 0:02:49]}  Ba6 {[%clk 0:02:35]} 9. Bxa6 {[%clk 0:02:48]}  Nxa6 {[%clk 0:02:34]} 10. Ne5 {[%clk 0:02:47]}  Nb8 {[%clk 0:02:28]} 11. O-O {[%clk 0:02:38]}  Nfd7 {[%clk 0:02:23]} 12. Bxe7 {[%clk 0:02:31]}  Qxe7 {[%clk 0:02:24]} 13. Qh5 {[%clk 0:02:22]}  f6 {[%clk 0:02:14]} 14. Ng4 {[%clk 0:02:12]}  Nc6 {[%clk 0:02:04]} 15. Rf3 {[%clk 0:02:02]}  e5 {[%clk 0:01:57]} 16. dxe5 {[%clk 0:01:54]}  fxe5 {[%clk 0:01:56]} 17. Raf1 {[%clk 0:01:40]}  Nf6 {[%clk 0:01:14]} 18. Nxf6+ {[%clk 0:01:32]}  Qxf6 {[%clk 0:01:11]} 19. e4 {[%clk 0:01:26]}  d4 {[%clk 0:00:51]} 20. Nc4 {[%clk 0:01:25]}  Qf7 {[%clk 0:00:29]} 21. Qxf7+ {[%clk 0:01:22]}  Rxf7 {[%clk 0:00:30]} 22. Nxe5 {[%clk 0:01:15]}  Nxe5 {[%clk 0:00:28]} 23. fxe5 {[%clk 0:01:14]}  Rxf3 {[%clk 0:00:28]} 24. gxf3 {[%clk 0:01:14]}  d3 {[%clk 0:00:23]} 25. c4 {[%clk 0:01:13]}  Rd8 {[%clk 0:00:22]} 26. Rd1 {[%clk 0:01:13]}  g5 {[%clk 0:00:20]} 27. Kf2 {[%clk 0:01:12]}  Kf7 {[%clk 0:00:20]} 28. Ke3 {[%clk 0:01:12]}  Ke6 {[%clk 0:00:19]} 29. Rxd3 {[%clk 0:01:10]}  Rxd3+ {[%clk 0:00:16]} 30. Kxd3 {[%clk 0:01:10]}  Kxe5 {[%clk 0:00:17]} 31. Ke3 {[%clk 0:01:10]}  h6 {[%clk 0:00:17]} 32. h3 {[%clk 0:01:09]}  h5 {[%clk 0:00:16]} 33. b3 {[%clk 0:01:03]}  a6 {[%clk 0:00:12]} 34. a3 {[%clk 0:01:03]}  a5 {[%clk 0:00:12]} 35. a4 {[%clk 0:00:58]}  h4 {[%clk 0:00:12]} 36. f4+ {[%clk 0:00:57]}  gxf4+ {[%clk 0:00:12]} 37. Kf3 {[%clk 0:00:58]}  Ke6 {[%clk 0:00:07]} 38. Kxf4 {[%clk 0:00:58]} 1-0


[Site "https://www.chess.com"]

[Event "Titled Tuesday Blitz November 08 Late 2022"]
[White "Holt, Conrad"]
[Black "Storey, Charles H"]
[WhiteFideId "2034387"]
[BlackFideId "406686"]
[WhiteElo "2592"]
[BlackElo "2252"]
[Result "1-0"]
[Round "01"]
[TimeControl "180+1"]
[Date "2022.11.09"]
[WhiteClock "0:02:09"]
[BlackClock "0:02:18"]

1. d4 {[%clk 0:02:52]}  g6 {[%clk 0:02:59]} 2. c4 {[%clk 0:02:52]}  Bg7 {[%clk 0:03:00]} 3. Nf3 {[%clk 0:02:52]}  c5 {[%clk 0:03:00]} 4. d5 {[%clk 0:02:52]}  d6 {[%clk 0:03:00]} 5. e4 {[%clk 0:02:52]}  Nf6 {[%clk 0:03:00]} 6. Nc3 {[%clk 0:02:51]}  O-O {[%clk 0:03:00]} 7. h3 {[%clk 0:02:51]}  Re8 {[%clk 0:02:59]} 8. Bd3 {[%clk 0:02:51]}  e6 {[%clk 0:03:00]} 9. O-O {[%clk 0:02:51]}  exd5 {[%clk 0:03:00]} 10. cxd5 {[%clk 0:02:51]}  b6 {[%clk 0:02:52]} 11. Bf4 {[%clk 0:02:48]}  Ba6 {[%clk 0:02:48]} 12. Re1 {[%clk 0:02:48]}  Bxd3 {[%clk 0:02:43]} 13. Qxd3 {[%clk 0:02:47]}  Nh5 {[%clk 0:02:41]} 14. Bh2 {[%clk 0:02:47]}  Qf6 {[%clk 0:02:33]} 15. e5 {[%clk 0:02:39]}  dxe5 {[%clk 0:02:27]} 16. Bxe5 {[%clk 0:02:32]}  Nf4 {[%clk 0:02:27]} 17. Bxf6 {[%clk 0:02:20]}  Rxe1+ {[%clk 0:02:26]} 18. Rxe1 {[%clk 0:02:19]}  Nxd3 {[%clk 0:02:22]} 19. Re8+ {[%clk 0:02:19]}  Bf8 {[%clk 0:02:22]} 20. Be7 {[%clk 0:02:09]}  Nc6 {[%clk 0:02:22]} 21. Rxa8 {[%clk 0:02:08]}  Nxe7 {[%clk 0:02:22]} 22. d6 {[%clk 0:02:09]}  Nc6 {[%clk 0:02:18]} 23. d7 {[%clk 0:02:09]} 1-0


[Site "https://www.chess.com"]

[Event "Titled Tuesday Blitz November 08 Late 2022"]
[White "Hryzlova, Sofiia"]
[Black "Gritsenko, Nikolai"]
[WhiteFideId "14174669"]
[BlackFideId "14112493"]
[WhiteElo "1992"]
[BlackElo "2389"]
[Result "0-1"]
[Round "01"]
[TimeControl "180+1"]
[Date "2022.11.09"]
[WhiteClock "0:00:03"]
[BlackClock "0:00:18"]

1. e4 {[%clk 0:02:57]}  d5 {[%clk 0:02:58]} 2. exd5 {[%clk 0:02:57]}  Nf6 {[%clk 0:02:59]} 3. d4 {[%clk 0:02:55]}  Nxd5 {[%clk 0:02:59]} 4. Nf3 {[%clk 0:02:55]}  Bf5 {[%clk 0:02:58]} 5. Bd3 {[%clk 0:02:55]}  Bxd3 {[%clk 0:02:57]} 6. Qxd3 {[%clk 0:02:56]}  c6 {[%clk 0:02:58]} 7. O-O {[%clk 0:02:56]}  e6 {[%clk 0:02:58]} 8. c4 {[%clk 0:02:57]}  Nf6 {[%clk 0:02:57]} 9. Nc3 {[%clk 0:02:57]}  Be7 {[%clk 0:02:57]} 10. Bf4 {[%clk 0:02:57]}  O-O {[%clk 0:02:56]} 11. Rad1 {[%clk 0:02:57]}  Nbd7 {[%clk 0:02:56]} 12. b3 {[%clk 0:02:56]}  Re8 {[%clk 0:02:52]} 13. Rfe1 {[%clk 0:02:56]}  Qa5 {[%clk 0:02:52]} 14. Re2 {[%clk 0:02:50]}  Bb4 {[%clk 0:02:45]} 15. Ne4 {[%clk 0:02:49]}  Nxe4 {[%clk 0:02:41]} 16. Qxe4 {[%clk 0:02:50]}  Rad8 {[%clk 0:02:33]} 17. Qc2 {[%clk 0:02:48]}  Be7 {[%clk 0:02:21]} 18. h4 {[%clk 0:02:43]}  Nf6 {[%clk 0:02:14]} 19. Re5 {[%clk 0:02:26]}  Qb6 {[%clk 0:02:12]} 20. h5 {[%clk 0:02:25]}  h6 {[%clk 0:02:06]} 21. Qc1 {[%clk 0:02:18]}  Bf8 {[%clk 0:02:03]} 22. Bd2 {[%clk 0:01:58]}  Qc7 {[%clk 0:01:58]} 23. c5 {[%clk 0:01:45]}  Rd5 {[%clk 0:01:53]} 24. Bf4 {[%clk 0:01:43]}  Qd8 {[%clk 0:01:45]} 25. Rde1 {[%clk 0:01:22]}  Nxh5 {[%clk 0:01:41]} 26. Rxd5 {[%clk 0:01:23]}  exd5 {[%clk 0:01:33]} 27. Rxe8 {[%clk 0:01:21]}  Qxe8 {[%clk 0:01:33]} 28. Be5 {[%clk 0:01:21]}  Be7 {[%clk 0:01:30]} 29. g4 {[%clk 0:01:04]}  Qd7 {[%clk 0:01:24]} 30. Nh2 {[%clk 0:00:57]}  Nf6 {[%clk 0:01:18]} 31. Qf4 {[%clk 0:00:57]}  Qe6 {[%clk 0:01:13]} 32. Bb8 {[%clk 0:00:38]}  a6 {[%clk 0:01:07]} 33. Kg2 {[%clk 0:00:39]}  Qe4+ {[%clk 0:01:04]} 34. Qxe4 {[%clk 0:00:39]}  dxe4 {[%clk 0:00:58]} 35. f3 {[%clk 0:00:37]}  exf3+ {[%clk 0:00:56]} 36. Kxf3 {[%clk 0:00:38]}  Nd5 {[%clk 0:00:54]} 37. Be5 {[%clk 0:00:37]}  f6 {[%clk 0:00:53]} 38. Bg3 {[%clk 0:00:34]}  Kf7 {[%clk 0:00:53]} 39. Nf1 {[%clk 0:00:32]}  Ke6 {[%clk 0:00:52]} 40. Nd2 {[%clk 0:00:32]}  g6 {[%clk 0:00:46]} 41. Nc4 {[%clk 0:00:30]}  Bd8 {[%clk 0:00:46]} 42. Nd6 {[%clk 0:00:29]}  b6 {[%clk 0:00:45]} 43. Ne4 {[%clk 0:00:22]}  b5 {[%clk 0:00:42]} 44. a4 {[%clk 0:00:20]}  f5 {[%clk 0:00:41]} 45. gxf5+ {[%clk 0:00:21]}  Kxf5 {[%clk 0:00:40]} 46. Nd6+ {[%clk 0:00:21]}  Ke6 {[%clk 0:00:40]} 47. Ke4 {[%clk 0:00:19]}  h5 {[%clk 0:00:39]} 48. Bh2 {[%clk 0:00:16]}  g5 {[%clk 0:00:39]} 49. Kd3 {[%clk 0:00:14]}  h4 {[%clk 0:00:38]} 50. axb5 {[%clk 0:00:12]}  axb5 {[%clk 0:00:37]} 51. Ne4 {[%clk 0:00:10]}  g4 {[%clk 0:00:36]} 52. Bb8 {[%clk 0:00:09]}  Bc7 {[%clk 0:00:32]} 53. Bxc7 {[%clk 0:00:07]}  Nxc7 {[%clk 0:00:31]} 54. Ke3 {[%clk 0:00:04]}  Nd5+ {[%clk 0:00:31]} 55. Kf2 {[%clk 0:00:04]}  Kf5 {[%clk 0:00:29]} 56. Nd6+ {[%clk 0:00:04]}  Kf4 {[%clk 0:00:29]} 57. Nf7 {[%clk 0:00:05]}  h3 {[%clk 0:00:28]} 58. Ne5 {[%clk 0:00:03]}  g3+ {[%clk 0:00:28]} 59. Kg1 {[%clk 0:00:04]}  Nb4 {[%clk 0:00:27]} 60. d5 {[%clk 0:00:02]}  Nxd5 {[%clk 0:00:26]} 61. Nxc6 {[%clk 0:00:02]}  Ke3 {[%clk 0:00:25]} 62. Ne5 {[%clk 0:00:02]}  Nf4 {[%clk 0:00:24]} 63. Ng4+ {[%clk 0:00:03]}  Kd2 {[%clk 0:00:18]} 64. c6 {[%clk 0:00:03]}  Ne2+ {[%clk 0:00:18]} 0-1


[Site "https://www.chess.com"]

[Event "Titled Tuesday Blitz November 08 Late 2022"]
[White "Iliaguev, Nisim"]
[Black "Grot, Blazej"]
[WhiteFideId "2817276"]
[BlackFideId "21835845"]
[WhiteElo "2244"]
[BlackElo "1822"]
[Result "1-0"]
[Round "01"]
[TimeControl "180+1"]
[Date "2022.11.09"]
[WhiteClock "0:01:42"]
[BlackClock "0:00:19"]

1. d4 {[%clk 0:03:00]}  d5 {[%clk 0:02:56]} 2. Nf3 {[%clk 0:03:01]}  Nf6 {[%clk 0:02:55]} 3. g3 {[%clk 0:03:02]}  e6 {[%clk 0:02:55]} 4. Bg2 {[%clk 0:03:03]}  c6 {[%clk 0:02:55]} 5. O-O {[%clk 0:03:03]}  Nbd7 {[%clk 0:02:55]} 6. c4 {[%clk 0:03:04]}  Bd6 {[%clk 0:02:55]} 7. Nc3 {[%clk 0:03:04]}  Qe7 {[%clk 0:02:55]} 8. Nd2 {[%clk 0:03:04]}  O-O {[%clk 0:02:55]} 9. e4 {[%clk 0:03:05]}  dxe4 {[%clk 0:02:55]} 10. Ndxe4 {[%clk 0:03:06]}  Nxe4 {[%clk 0:02:55]} 11. Nxe4 {[%clk 0:03:07]}  Bc7 {[%clk 0:02:55]} 12. Bg5 {[%clk 0:03:06]}  Qe8 {[%clk 0:02:52]} 13. Re1 {[%clk 0:03:05]}  h6 {[%clk 0:02:52]} 14. Be3 {[%clk 0:03:04]}  Qe7 {[%clk 0:02:51]} 15. d5 {[%clk 0:03:03]}  cxd5 {[%clk 0:02:50]} 16. cxd5 {[%clk 0:03:04]}  exd5 {[%clk 0:02:47]} 17. Nc3 {[%clk 0:03:04]}  Qd8 {[%clk 0:02:20]} 18. Nxd5 {[%clk 0:03:03]}  Be5 {[%clk 0:02:15]} 19. Qb3 {[%clk 0:02:56]}  Nf6 {[%clk 0:01:49]} 20. Rad1 {[%clk 0:02:48]}  Nxd5 {[%clk 0:01:43]} 21. Rxd5 {[%clk 0:02:48]}  Qf6 {[%clk 0:01:43]} 22. Bc5 {[%clk 0:02:19]}  Re8 {[%clk 0:01:18]} 23. Bd4 {[%clk 0:02:17]}  Be6 {[%clk 0:01:12]} 24. Rdxe5 {[%clk 0:02:08]}  Qxe5 {[%clk 0:01:03]} 25. Rxe5 {[%clk 0:01:52]}  Bxb3 {[%clk 0:01:03]} 26. axb3 {[%clk 0:01:52]}  Red8 {[%clk 0:00:54]} 27. Bc3 {[%clk 0:01:51]}  Rd1+ {[%clk 0:00:53]} 28. Bf1 {[%clk 0:01:51]}  Rad8 {[%clk 0:00:49]} 29. Kg2 {[%clk 0:01:50]}  R8d7 {[%clk 0:00:39]} 30. Bc4 {[%clk 0:01:50]}  Kh7 {[%clk 0:00:34]} 31. b4 {[%clk 0:01:48]}  h5 {[%clk 0:00:31]} 32. Rxh5+ {[%clk 0:01:48]}  Kg6 {[%clk 0:00:32]} 33. Rh4 {[%clk 0:01:48]}  b6 {[%clk 0:00:30]} 34. Rg4+ {[%clk 0:01:47]}  Kh7 {[%clk 0:00:30]} 35. Rxg7+ {[%clk 0:01:47]}  Kh6 {[%clk 0:00:29]} 36. Rxf7 {[%clk 0:01:44]}  Rxf7 {[%clk 0:00:28]} 37. Bxf7 {[%clk 0:01:45]}  Ra1 {[%clk 0:00:18]} 38. h4 {[%clk 0:01:45]}  a5 {[%clk 0:00:18]} 39. bxa5 {[%clk 0:01:44]}  bxa5 {[%clk 0:00:19]} 40. g4 {[%clk 0:01:45]}  a4 {[%clk 0:00:19]} 41. g5+ {[%clk 0:01:45]}  Kh7 {[%clk 0:00:19]} 42. g6+ {[%clk 0:01:45]}  Kh6 {[%clk 0:00:20]} 43. g7 {[%clk 0:01:43]}  a3 {[%clk 0:00:19]} 44. g8=Q {[%clk 0:01:42]}  Rg1+ {[%clk 0:00:19]} 45. Kxg1 {[%clk 0:01:42]}  a2 {[%clk 0:00:19]} 46. Qg6# {[%clk 0:01:42]} 1-0


[Site "https://www.chess.com"]

[Event "Titled Tuesday Blitz November 08 Late 2022"]
[White "Janaszak, Dawid"]
[Black "Guimaraes, Marcelo Cunha"]
[WhiteFideId "1119206"]
[BlackFideId "2118068"]
[WhiteElo "2226"]
[BlackElo "2108"]
[Result "1-0"]
[Round "01"]
[TimeControl "180+1"]
[Date "2022.11.09"]
[WhiteClock "0:02:30"]
[BlackClock "0:01:45"]

1. d4 {[%clk 0:03:00]}  Nf6 {[%clk 0:02:59]} 2. Bf4 {[%clk 0:02:58]}  g6 {[%clk 0:02:58]} 3. Nc3 {[%clk 0:02:57]}  Bg7 {[%clk 0:02:54]} 4. e4 {[%clk 0:02:57]}  d6 {[%clk 0:02:53]} 5. Qd2 {[%clk 0:02:57]}  c6 {[%clk 0:02:50]} 6. Bh6 {[%clk 0:02:57]}  O-O {[%clk 0:02:50]} 7. f3 {[%clk 0:02:56]}  b5 {[%clk 0:02:49]} 8. h4 {[%clk 0:02:56]}  b4 {[%clk 0:02:48]} 9. Nd1 {[%clk 0:02:56]}  Nh5 {[%clk 0:02:22]} 10. Ne2 {[%clk 0:02:52]}  f5 {[%clk 0:02:06]} 11. Bxg7 {[%clk 0:02:45]}  Nxg7 {[%clk 0:02:02]} 12. Nf4 {[%clk 0:02:32]}  e5 {[%clk 0:01:46]} 13. Bc4+ {[%clk 0:02:30]}  Kh8 {[%clk 0:01:45]} 14. Nxg6+ {[%clk 0:02:30]} 1-0


[Site "https://www.chess.com"]

[Event "Titled Tuesday Blitz November 08 Late 2022"]
[White "Kazakov, Mikhail"]
[Black "Fier, Alexandr"]
[WhiteFideId "14102749"]
[BlackFideId "2107139"]
[WhiteElo "2413"]
[BlackElo "2617"]
[Result "0-1"]
[Round "01"]
[TimeControl "180+1"]
[Date "2022.11.09"]
[WhiteClock "0:00:05"]
[BlackClock "0:00:45"]

1. d4 {[%clk 0:02:57]}  Nf6 {[%clk 0:02:59]} 2. c4 {[%clk 0:02:56]}  e6 {[%clk 0:02:59]} 3. Nf3 {[%clk 0:02:54]}  b6 {[%clk 0:03:00]} 4. a3 {[%clk 0:02:54]}  Ba6 {[%clk 0:02:58]} 5. Qc2 {[%clk 0:02:49]}  c5 {[%clk 0:02:59]} 6. dxc5 {[%clk 0:02:38]}  bxc5 {[%clk 0:02:43]} 7. g3 {[%clk 0:02:36]}  Bb7 {[%clk 0:02:43]} 8. Bg2 {[%clk 0:02:36]}  Be7 {[%clk 0:02:43]} 9. O-O {[%clk 0:02:35]}  O-O {[%clk 0:02:44]} 10. Nc3 {[%clk 0:02:35]}  Qb6 {[%clk 0:02:41]} 11. Be3 {[%clk 0:02:22]}  d6 {[%clk 0:02:39]} 12. h3 {[%clk 0:02:19]}  Qc7 {[%clk 0:02:35]} 13. Rad1 {[%clk 0:02:16]}  a6 {[%clk 0:02:34]} 14. Bf4 {[%clk 0:02:15]}  Nc6 {[%clk 0:02:32]} 15. g4 {[%clk 0:02:14]}  Rad8 {[%clk 0:02:28]} 16. Bg3 {[%clk 0:02:13]}  Rfe8 {[%clk 0:02:28]} 17. e3 {[%clk 0:02:12]}  Qb8 {[%clk 0:02:25]} 18. Ng5 {[%clk 0:02:01]}  h6 {[%clk 0:02:21]} 19. Nge4 {[%clk 0:01:59]}  Nxe4 {[%clk 0:02:14]} 20. Nxe4 {[%clk 0:02:00]}  Ne5 {[%clk 0:02:15]} 21. f4 {[%clk 0:01:42]}  Nc6 {[%clk 0:02:14]} 22. f5 {[%clk 0:01:38]}  exf5 {[%clk 0:02:11]} 23. Nxc5 {[%clk 0:01:16]}  fxg4 {[%clk 0:02:06]} 24. Nxb7 {[%clk 0:01:10]}  Qxb7 {[%clk 0:02:07]} 25. Rxf7 {[%clk 0:01:02]}  Qb6 {[%clk 0:01:55]} 26. Bd5 {[%clk 0:00:44]}  Kh8 {[%clk 0:01:45]} 27. Qg6 {[%clk 0:00:35]}  Bf8 {[%clk 0:01:44]} 28. Rdf1 {[%clk 0:00:33]}  Qxe3+ {[%clk 0:01:43]} 29. Kh2 {[%clk 0:00:33]}  Ne5 {[%clk 0:01:32]} 30. Bxe5 {[%clk 0:00:29]}  Qxe5+ {[%clk 0:01:31]} 31. Kh1 {[%clk 0:00:29]}  gxh3 {[%clk 0:01:21]} 32. R7f3 {[%clk 0:00:29]}  Qe2 {[%clk 0:01:09]} 33. R3f2 {[%clk 0:00:24]}  Qe5 {[%clk 0:01:03]} 34. Rf4 {[%clk 0:00:23]}  Qg5 {[%clk 0:01:01]} 35. Qxg5 {[%clk 0:00:20]}  hxg5 {[%clk 0:01:01]} 36. R4f3 {[%clk 0:00:20]}  g4 {[%clk 0:00:57]} 37. Rf4 {[%clk 0:00:21]}  Be7 {[%clk 0:00:51]} 38. Rxg4 {[%clk 0:00:19]}  Rf8 {[%clk 0:00:52]} 39. Rxf8+ {[%clk 0:00:18]}  Rxf8 {[%clk 0:00:51]} 40. Rg3 {[%clk 0:00:18]}  Bh4 {[%clk 0:00:48]} 41. Rxh3 {[%clk 0:00:17]}  g5 {[%clk 0:00:49]} 42. Rf3 {[%clk 0:00:17]}  Re8 {[%clk 0:00:49]} 43. Kg2 {[%clk 0:00:16]}  Re2+ {[%clk 0:00:49]} 44. Kh3 {[%clk 0:00:17]}  Rxb2 {[%clk 0:00:50]} 45. Kg4 {[%clk 0:00:18]}  Kg7 {[%clk 0:00:50]} 46. Rf7+ {[%clk 0:00:17]}  Kg6 {[%clk 0:00:50]} 47. Rd7 {[%clk 0:00:17]}  Rb6 {[%clk 0:00:48]} 48. Re7 {[%clk 0:00:17]}  a5 {[%clk 0:00:47]} 49. Re6+ {[%clk 0:00:18]}  Kg7 {[%clk 0:00:47]} 50. Kf5 {[%clk 0:00:18]}  g4 {[%clk 0:00:46]} 51. Re7+ {[%clk 0:00:18]}  Bxe7 {[%clk 0:00:46]} 52. Kxg4 {[%clk 0:00:02]}  Rb3 {[%clk 0:00:45]} 53. a4 {[%clk 0:00:02]}  Rb4 {[%clk 0:00:45]} 54. Kf5 {[%clk 0:00:03]}  Rxa4 {[%clk 0:00:45]} 55. Ke6 {[%clk 0:00:04]}  Kf8 {[%clk 0:00:44]} 56. Kd7 {[%clk 0:00:04]}  Ra3 {[%clk 0:00:45]} 57. Kc6 {[%clk 0:00:05]}  a4 {[%clk 0:00:45]} 0-1


[Site "https://www.chess.com"]